bitfinex-derivatives/quotes_SOLF0:USTF0_20241024
["timestamp","ask_amount","ask_price","bid_price","bid_amount"]
[1729738514288,4.62,174.47,174.46,2.8687]
[1729738514586,4.62,174.47,174.43,7.04524874]
[1729738515086,4.17872883,174.59,174.46,7.04524874]
[1729738515284,4.62,174.58,174.46,7.04524874]
[1729738515486,7.04524874,174.52,174.46,7.04524874]
[1729738515683,7.04524874,174.52,174.47,2.8684]
[1729738515684,7.488,174.51,174.47,2.8684]
[1729738515877,4.62,174.5,174.47,7.04524874]
[1729738516085,4.62,174.49,174.48,2.8683]
[1729738519596,4.62,174.49,174.42,1.2753]
[1729738519994,4.62,174.49,174.44,7.04524874]
[1729738520497,4.62,174.49,174.46,2.8685]
[1729738522790,7.04524874,174.48,174.46,2.8685]
[1729738523298,9.91354874,174.48,174.44,2.8689]
[1729738524603,9.91354874,174.48,174.43,7.04524874]
[1729738524804,9.91354874,174.48,174.45,2.8688]
[1729738525495,9.91354874,174.48,174.44,2.8689]
[1729738526411,9.91354874,174.48,174.4,1.172]
[1729738526412,2.8687,174.46,174.4,2.8696]
[1729738526604,4.62,174.45,174.4,7.04524874]
[1729738527111,11.66524874,174.45,174.4,7.04524874]
[1729738527301,11.66524874,174.45,174.4,2.8695]
[1729738527612,11.66524874,174.45,174.39,7.04524874]
[1729738527799,7.4888,174.45,174.41,2.8695]
[1729738528002,11.66524874,174.45,174.39,7.04524874]
[1729738529206,11.66524874,174.45,174.41,2.8694]
[1729738530110,4.62,174.45,174.39,7.04524874]
[1729738530309,4.62,174.45,174.44,2.869]
[1729738532302,4.62,174.45,174.44,7.04524874]
[1729738532510,2.6885,174.45,174.44,7.04524874]
[1729738532903,2.6885,174.45,174.44,9.91424874]
[1729738534411,61.92,174.51,174.48,2.8682]
[1729738534614,4.62,174.5,174.47,7.04524874]
[1729738535313,4.62,174.5,174.49,2.868]
[1729738538419,4.62,174.5,174.48,2.8683]
[1729738539509,4.62,174.5,174.46,2.8686]
[1729738539716,11.66524874,174.5,174.45,7.04524874]
[1729738539905,4.62,174.5,174.46,7.04524874]
[1729738540107,4.62,174.5,174.49,2.8682]
[1729738541418,4.62,174.5,174.41,2.8694]
[1729738541606,7.04524874,174.48,174.43,7.04524874]
[1729738542218,7.04524874,174.48,174.42,2.8693]
[1729738542413,4.62,174.5,174.38,1.215]
[1729738542414,7.04524874,174.45,174.38,1.215]
[1729738542615,7.04524874,174.45,174.26,24.35980313]
[1729738542616,7.04524874,174.43,174.37,7.04524874]
[1729738542818,4.6,174.42,174.37,7.04524874]
[1729738543314,4.6,174.42,174.4,2.8696]
[1729738544209,4.6,174.42,174.41,9.91474874]
[1729738549116,7.04524874,174.45,174.39,9.91504874]
[1729738549317,4.6,174.44,174.39,7.04524874]
[1729738549619,4.6,174.44,174.38,7.04524874]
[1729738549822,7.04524874,174.43,174.36,1.2548]
[1729738550022,9.91444874,174.43,174.38,7.04524874]
[1729738550516,7.04524874,174.43,174.38,7.04524874]
[1729738550719,2.8693,174.42,174.38,7.04524874]
[1729738551121,9.91444874,174.43,174.38,7.04524874]
[1729738551620,7.04524874,174.42,174.37,2.8701]
[1729738554118,9.91454874,174.42,174.37,2.8701]
[1729738554516,2.8693,174.42,174.38,7.04524874]
[1729738555520,2.8695,174.41,174.37,2.8701]
[1729738555720,4.6,174.4,174.37,9.91534874]
[1729738558822,4.6,174.4,174.34,1.2139]
[1729738559016,4.6,174.4,174.35,7.04524874]
[1729738559323,7.04524874,174.37,174.3,2.4912]
[1729738559519,7.04524874,174.37,174.33,2.8708]
[1729738559520,4.6,174.36,174.33,2.8708]
[1729738560724,4.6,174.36,174.34,2.8706]
[1729738561410,4.6,174.37,174.35,7.04524874]
[1729738561615,4.6,174.37,174.36,7.04524874]
[1729738561815,4.6,174.37,174.36,9.91554874]
[1729738563220,2.8692,174.43,174.36,7.04524874]
[1729738563416,4.6,174.42,174.38,9.91504874]
[1729738563616,4.6,174.41,174.39,7.04524874]
[1729738564131,4.6,174.41,174.4,2.8696]
[1729738565022,1.1964,174.45,174.4,2.8696]
[1729738565219,4.6,174.44,174.41,7.04524874]
[1729738565727,4.6,174.43,174.42,2.8692]
[1729738566228,4.6,174.43,174.42,9.91444874]
[1729738566829,7.04524874,174.53,174.49,2.8681]
[1729738567034,4.6,174.5,174.49,2.8681]
[1729738568124,4.6,174.5,174.48,2.8683]
[1729738568325,4.6,174.5,174.46,7.04524874]
[1729738568524,4.6,174.5,174.38,1.2722]
[1729738568525,7.04524874,174.55,174.49,7.04524874]
[1729738568729,4.6,174.51,174.49,7.04524874]
[1729738570119,1.1832,174.56,174.52,2.8677]
[1729738570331,4.6,174.55,174.52,9.91294874]
[1729738571230,4.6,174.54,174.52,9.91294874]
[1729738571825,4.6,174.54,174.52,7.04524874]
[1729738572335,4.6,174.54,174.53,7.04524874]
[1729738572533,61.94,174.6,174.53,7.04524874]
[1729738572721,4.6,174.59,174.58,7.04524874]
[1729738572922,4.6,174.6,174.58,7.04524874]
[1729738573137,4.6,174.61,174.6,2.8663]
[1729738573430,4.6,174.61,174.51,4.6]
[1729738573431,4.6,174.62,174.61,7.04524874]
[1729738574132,4.6,174.62,174.61,9.91144874]
[1729738574333,4.6,174.62,174.61,2.8662]
[1729738577533,4.6,174.62,174.54,11.003282]
[1729738577733,4.6,174.62,174.52,13.506682]
[1729738577925,15.603282,174.62,174.52,1.2357]
[1729738578628,18.469382,174.62,174.56,2.8669]
[1729738578829,15.603282,174.62,174.56,2.8669]
[1729738579235,15.603282,174.62,174.53,2.8674]
[1729738579435,11.003282,174.59,174.53,2.8674]
[1729738579636,11.003282,174.59,174.52,1.2357]
[1729738579637,4.6,174.58,174.52,1.2357]
[1729738579826,4.6,174.58,174.53,2.8674]
[1729738580031,4.6,174.58,174.48,1.2314]
[1729738580431,4.6,174.58,174.54,2.8673]
[1729738582639,4.6,174.58,174.55,2.8671]
[1729738583236,4.6,174.58,174.49,11.003282]
[1729738584032,4.6,174.58,174.48,1.2314]
[1729738584033,4.6,174.58,174.57,2.8669]
[1729738585331,4.6,174.58,174.52,11.003282]
[1729738585631,4.6,174.58,174.48,2.66547545]
[1729738585632,4.6,174.57,174.55,11.003282]
[1729738585933,4.6,174.59,174.58,2.8667]
[1729738586830,1.2851,174.64,174.6,2.8663]
[1729738587027,4.6,174.63,174.6,2.8663]
[1729738587640,7.4659,174.63,174.58,2.8666]
[1729738587941,7.4659,174.63,174.55,11.003282]
[1729738588340,4.6,174.63,174.59,2.8664]
[1729738588935,4.6,174.63,174.53,11.003282]
[1729738589137,11.003282,174.61,174.56,2.867]
[1729738589344,11.003282,174.61,174.5,11.003282]
[1729738589546,2.8665,174.59,174.54,2.8672]
[1729738589736,4.6,174.58,174.5,11.003282]
[1729738589935,4.6,174.58,174.48,12.234682]
[1729738590753,7.4667,174.58,174.53,2.8674]
[1729738591244,2.8669,174.57,174.53,2.8674]
[1729738591446,11.003282,174.56,174.51,2.8677]
[1729738591743,11.003282,174.56,174.46,1.2813]
[1729738591940,2.8675,174.54,174.49,2.8682]
[1729738592141,4.6,174.53,174.49,2.8682]
[1729738592341,4.6,174.53,174.46,1.2813]
[1729738592947,4.6,174.53,174.45,11.003282]
[1729738593345,4.6,174.52,174.45,11.003282]
[1729738593940,4.6,174.52,174.49,2.8681]
[1729738596344,4.6,174.52,174.45,11.003282]
[1729738596543,4.6,174.52,174.5,2.868]
[1729738597148,4.6,174.52,174.45,11.003282]
[1729738597447,4.6,174.52,174.43,11.003282]
[1729738597844,4.6,174.52,174.49,2.8681]
[1729738599147,11.003282,174.51,174.41,1.43452821]
[1729738599350,11.003282,174.48,174.36,11.003282]
[1729738599547,4.58,174.47,174.37,1.1824]
[1729738599744,2.8687,174.46,174.37,1.1824]
[1729738600150,4.58,174.47,174.37,1.1824]
[1729738600344,7.4485,174.47,174.41,2.8693]
[1729738601053,7.4485,174.47,174.42,2.8693]
[1729738606058,7.4485,174.47,174.4,2.8696]
[1729738606259,7.4485,174.47,174.37,1.1824]
[1729738606755,7.4485,174.47,174.42,2.8692]
[1729738609955,7.4485,174.47,174.43,2.8692]
[1729738610353,2.8687,174.46,174.43,2.8692]
[1729738611261,11.003282,174.48,174.43,2.8692]
[1729738611459,7.4685,174.47,174.43,2.8692]
[1729738613156,4.6,174.47,174.37,1.1824]
[1729738613850,4.6,174.47,174.43,2.8691]
[1729738613851,7.4685,174.47,174.43,2.8691]
[1729738614260,7.05177664,174.44,174.43,2.8691]
[1729738615355,11.65177664,174.44,174.43,2.8691]
[1729738615552,7.05177664,174.48,174.42,7.05177664]
[1729738615752,4.6,174.47,174.42,7.05177664]
[1729738615954,7.05177664,174.48,174.42,7.05177664]
[1729738616155,4.6,174.47,174.42,7.05177664]
[1729738616664,7.05177664,174.46,174.42,7.05177664]
[1729738617363,7.05177664,174.46,174.45,2.8688]
[1729738621062,7.05177664,174.47,174.42,7.05177664]
[1729738621265,61.94,174.49,174.44,7.05177664]
[1729738621559,61.94,174.49,174.47,7.05177664]
[1729738621560,4.6,174.48,174.47,7.05177664]
[1729738621764,61.94,174.49,174.48,2.8683]
[1729738621971,66.54,174.49,174.48,2.8683]
[1729738622862,1.2808,174.57,174.47,7.05177664]
[1729738622863,7.05177664,174.52,174.51,2.8678]
[1729738623063,11.65177664,174.52,174.47,7.05177664]
[1729738623263,7.05177664,174.5,174.45,7.05177664]
[1729738624072,7.05177664,174.5,174.49,2.8682]
[1729738627861,9.91997664,174.5,174.43,2.869]
[1729738628065,7.05177664,174.46,174.41,8.23337664]
[1729738628266,4.58,174.45,174.41,8.23337664]
[1729738629270,7.05177664,174.44,174.42,2.8693]
[1729738629462,7.05177664,174.44,174.39,7.05177664]
[1729738630065,7.05177664,174.44,174.43,2.8692]
[1729738630266,4.58,174.45,174.43,2.8692]
[1729738630967,4.58,174.45,174.44,2.869]
[1729738631571,11.01779923,174.47,174.37,1.1824]
[1729738631768,11.01779923,174.52,174.4,11.01779923]
[1729738631963,4.58,174.51,174.4,11.01779923]
[1729738632363,11.01779923,174.49,174.38,11.01779923]
[1729738632864,11.01779923,174.49,174.43,2.869]
[1729738632865,2.8686,174.47,174.43,2.869]
[1729738633069,4.58,174.46,174.37,2.61721843]
[1729738633266,4.58,174.46,174.37,1.1824]
[1729738633971,4.58,174.46,174.43,2.8691]
[1729738635067,4.58,174.46,174.37,1.1824]
[1729738635265,18.46649923,174.46,174.42,2.8693]
[1729738636376,15.59779923,174.46,174.37,1.1824]
[1729738636869,2.8688,174.45,174.41,2.8693]
[1729738638175,2.8688,174.45,174.37,1.1824]
[1729738638364,2.8688,174.45,174.42,2.8693]
[1729738641778,18.46649923,174.46,174.42,2.8693]
[1729738644488,15.59779923,174.46,174.37,1.1824]
[1729738644880,15.59779923,174.46,174.42,2.8692]
[1729738644881,2.8689,174.45,174.42,2.8692]
[1729738650287,7.05254021,174.43,174.42,2.8692]
[1729738653780,7.05254021,174.43,174.41,2.8695]
[1729738653987,4.58,174.42,174.41,2.8695]
[1729738665296,4.58,174.42,174.41,4.3045347]
[1729738666594,4.58,174.42,174.41,2.8695]
[1729738666787,4.58,174.42,174.37,2.8701]
[1729738666991,4.58,174.42,174.27,2.5387]
[1729738666992,7.05254021,174.38,174.27,2.5387]
[1729738667195,7.05254021,174.38,174.28,1.43537423]
[1729738667196,4.58,174.37,174.28,1.43537423]
[1729738667495,4.58,174.37,174.3,7.05254021]
[1729738667794,4.58,174.37,174.31,1.43540487]
[1729738667998,4.58,174.37,174.32,1.43540487]
[1729738668299,4.58,174.37,174.36,2.8703]
[1729738668496,4.58,174.37,174.36,4.30570487]
[1729738670287,4.58,174.37,174.36,2.8703]
[1729738670488,4.58,174.37,174.36,4.30572977]
[1729738670900,4.58,174.37,174.36,2.8703]
[1729738672993,4.58,174.37,174.29,7.05254021]
[1729738673192,4.58,174.37,174.35,2.8704]
[1729738673596,4.58,174.37,174.27,2.5387]
[1729738673597,2.8705,174.36,174.3,2.8713]
[1729738673905,7.05254021,174.31,174.27,1.2832]
[1729738674199,4.58,174.3,174.29,2.8715]
[1729738674389,11.63254021,174.3,174.29,2.8715]
[1729738674793,11.63254021,174.3,174.27,2.8717]
[1729738675099,11.63254021,174.3,174.15,17.21]
[1729738675100,7.05254021,174.28,174.2,1.43633402]
[1729738675302,7.05254021,174.23,174.22,2.8726]
[1729738675503,11.63254021,174.23,174.22,2.8726]
[1729738676194,14.50504021,174.23,174.2,1.43644156]
[1729738676391,7.05254021,174.21,174.12,7.05254021]
[1729738676595,7.05254021,174.18,174.13,1.43644156]
[1729738676796,4.58,174.17,174.14,1.43644156]
[1729738676996,7.05254021,174.18,174.12,7.05254021]
[1729738676997,7.05254021,174.18,174.17,2.8734]
[1729738677196,1.2802,174.28,174.13,1.43644156]
[1729738677197,4.58,174.16,174.13,1.43644156]
[1729738677397,4.58,174.16,174.13,7.05254021]
[1729738677598,4.58,174.16,174.15,2.8738]
[1729738679000,4.58,174.16,174.14,2.8739]
[1729738679202,4.58,174.16,174.13,7.05254021]
[1729738680310,4.58,174.16,174.15,2.8738]
[1729738681799,1.2802,174.28,174.15,7.05254021]
[1729738681998,1.2802,174.28,174.11,2.4523]
[1729738681999,1.2614,174.29,174.19,7.05254021]
[1729738682207,7.05254021,174.25,174.19,7.05254021]
[1729738682409,4.58,174.24,174.23,2.8724]
[1729738685005,11.63254021,174.24,174.23,2.8724]
[1729738686511,11.63254021,174.24,174.2,1.232]
[1729738686705,7.05254021,174.21,174.14,7.05254021]
[1729738686904,4.58,174.2,174.14,7.05254021]
[1729738687305,4.58,174.2,174.19,2.8731]
[1729738689007,4.58,174.2,174.13,1.2144]
[1729738689008,1.2614,174.29,174.17,7.05254021]
[1729738689211,4.58,174.28,174.2,7.05254021]
[1729738689512,7.05254021,174.26,174.2,7.05254021]
[1729738690105,7.05254021,174.25,174.2,7.05254021]
[1729738690304,4.58,174.24,174.2,7.05254021]
[1729738690506,4.58,174.24,174.19,7.05254021]
[1729738690711,4.58,174.24,174.23,2.8724]
[1729738691511,11.63254021,174.24,174.23,2.8724]
[1729738692907,11.63254021,174.24,174.12,1.43654665]
[1729738693112,7.05254021,174.16,174.1,2.415]
[1729738693308,4.58,174.15,174.1,2.415]
[1729738693515,4.58,174.15,174.14,2.8739]
[1729738694107,4.58,174.15,174.12,7.05254021]
[1729738695123,11.63254021,174.15,174.09,7.05254021]
[1729738696322,4.58,174.15,174.12,2.8742]
[1729738696620,4.58,174.15,174.07,2.4441]
[1729738696821,4.58,174.15,174.13,2.8741]
[1729738697119,4.58,174.15,174.07,2.4441]
[1729738697120,15.62355856,174.15,174.07,2.4441]
[1729738697511,15.62355856,174.15,174.1,2.8744]
[1729738698118,15.62355856,174.15,174.11,2.8744]
[1729738698719,15.62355856,174.15,174.07,2.4441]
[1729738699020,15.62355856,174.15,174.12,2.8743]
[1729738699325,4.58,174.15,174.12,2.8743]
[1729738699519,4.58,174.14,174.13,2.8741]
[1729738700417,11.04355856,174.18,174.07,2.4441]
[1729738700620,62.02,174.21,174.07,2.4441]
[1729738700822,4.58,174.2,174.11,11.04355856]
[1729738701823,4.58,174.2,174.16,2.8735]
[1729738702222,17.21,174.35,174.17,11.04355856]
[1729738702417,11.04355856,174.31,174.18,3.6877]
[1729738702625,11.04355856,174.31,174.2,11.04355856]
[1729738702922,4.58,174.3,174.2,11.04355856]
[1729738703126,4.58,174.29,174.2,11.04355856]
[1729738703330,4.58,174.28,174.27,2.8718]
[1729738704724,11.04355856,174.33,174.22,11.04355856]
[1729738705030,4.58,174.32,174.3,2.8711]
[1729738705226,1.2565,174.35,174.26,11.04355856]
[1729738705429,4.58,174.34,174.26,11.04355856]
[1729738705729,4.58,174.34,174.27,2.3865]
[1729738706329,4.58,174.34,174.33,2.8708]
[1729738707228,11.04355856,174.4,174.29,11.04355856]
[1729738707425,4.58,174.39,174.31,11.04355856]
[1729738707731,4.58,174.38,174.31,11.04355856]
[1729738707929,4.58,174.38,174.36,2.8702]
[1729738708130,4.58,174.38,174.31,11.04355856]
[1729738708520,13.91285856,174.42,174.33,2.8708]
[1729738708726,13.91285856,174.42,174.31,11.04355856]
[1729738708727,4.58,174.41,174.31,11.04355856]
[1729738709331,4.58,174.41,174.36,2.8702]
[1729738709527,13.91285856,174.42,174.36,2.8702]
[1729738709732,4.58,174.46,174.38,11.04355856]
[1729738709937,4.58,174.45,174.38,11.04355856]
[1729738710132,4.58,174.45,174.27,3.6337]
[1729738710133,4.58,174.44,174.27,3.6337]
[1729738710430,11.04355856,174.42,174.29,11.04355856]
[1729738710732,11.04355856,174.42,174.31,11.04355856]
[1729738711924,11.04355856,174.42,174.37,2.87]
[1729738712125,11.04355856,174.42,174.31,11.04355856]
[1729738712635,4.92,174.41,174.33,11.04355856]
[1729738713027,4.92,174.41,174.35,2.8704]
[1729738713233,4.92,174.41,174.33,11.04355856]
[1729738714026,12.25385856,174.46,174.33,11.04355856]
[1729738714330,12.25385856,174.46,174.27,3.6337]
[1729738714331,1.2103,174.46,174.36,11.04355856]
[1729738714527,4.92,174.45,174.41,2.8693]
[1729738714724,11.04355856,174.48,174.38,11.04355856]
[1729738714925,4.92,174.47,174.38,11.04355856]
[1729738715332,4.92,174.47,174.43,2.8691]
[1729738715628,4.92,174.47,174.38,11.04355856]
[1729738715629,4.92,174.46,174.38,11.04355856]
[1729738715833,4.92,174.45,174.39,2.4416]
[1729738717235,4.92,174.45,174.44,2.8689]
[1729738719438,4.92,174.45,174.39,2.4416]
[1729738719439,2.4962,174.5,174.46,2.8685]
[1729738719735,4.92,174.49,174.46,2.8685]
[1729738720733,4.92,174.49,174.41,11.04355856]
[1729738720946,4.92,174.49,174.47,2.8685]
[1729738721941,4.92,174.49,174.46,2.8686]
[1729738724341,4.92,174.48,174.44,2.869]
[1729738724537,4.92,174.48,174.41,11.04355856]
[1729738725142,4.92,174.48,174.39,2.4416]
[1729738725740,4.92,174.48,174.45,2.8687]
[1729738726140,4.92,174.48,174.39,2.4416]
[1729738727143,4.92,174.48,174.45,2.8687]
[1729738727940,4.92,174.48,174.46,2.8686]
[1729738728139,4.92,174.48,174.41,11.04355856]
[1729738728540,4.92,174.48,174.47,2.8685]
[1729738728743,15.96355856,174.48,174.34,11.04355856]
[1729738729043,11.04355856,174.43,174.32,11.04355856]
[1729738729240,4.92,174.42,174.32,11.04355856]
[1729738729832,11.04355856,174.41,174.31,3.6678]
[1729738730032,11.04355856,174.39,174.31,1.2792]
[1729738730640,11.04355856,174.39,174.33,2.8707]
[1729738730845,11.04355856,174.39,174.28,11.04355856]
[1729738731236,2.87,174.38,174.32,2.8708]
[1729738731437,4.92,174.37,174.26,11.04355856]
[1729738731745,4.92,174.37,174.32,2.871]
[1729738733339,4.92,174.37,174.36,2.8703]
[1729738734346,61.94,174.43,174.33,11.04355856]
[1729738734542,4.92,174.42,174.39,2.8697]
[1729738736841,4.92,174.42,174.41,2.8695]
[1729738737247,4.92,174.42,174.34,2.398]
[1729738738947,61.94,174.43,174.34,2.398]
[1729738739250,4.92,174.42,174.39,2.8697]
[1729738739957,4.92,174.42,174.4,2.8696]
[1729738740550,61.94,174.43,174.36,11.04355856]
[1729738740755,4.68,174.42,174.36,11.04355856]
[1729738741453,4.68,174.42,174.41,2.8695]
[1729738742454,4.68,174.42,174.4,2.8696]
[1729738744365,4.68,174.42,174.38,2.8698]
[1729738744569,4.68,174.42,174.35,1.2262]
[1729738745566,61.94,174.43,174.35,1.2262]
[1729738745567,4.68,174.41,174.39,11.04355856]
[1729738746269,4.68,174.41,174.4,2.8696]
[1729738746863,61.94,174.43,174.39,11.04355856]
[1729738747065,61.94,174.43,174.42,2.8693]
[1729738747266,66.6,174.43,174.42,2.8693]
[1729738752065,1.2468,174.5,174.35,1.2262]
[1729738752066,4.66,174.44,174.41,11.04355856]
[1729738752268,4.66,174.45,174.41,11.04355856]
[1729738752464,4.66,174.46,174.42,2.5419]
[1729738752769,61.94,174.52,174.42,2.5419]
[1729738752969,61.94,174.52,174.42,3.7643]
[1729738752970,4.66,174.51,174.42,3.7643]
[1729738753264,4.66,174.5,174.44,11.04355856]
[1729738754264,4.66,174.5,174.49,2.8682]
[1729738756265,61.94,174.52,174.5,2.8679]
[1729738756464,4.66,174.51,174.42,14.80785856]
[1729738756661,4.66,174.51,174.39,11.04355856]
[1729738756662,11.04355856,174.5,174.39,11.04355856]
[1729738756865,11.04355856,174.47,174.42,2.8693]
[1729738757064,4.66,174.46,174.37,11.04355856]
[1729738757862,4.66,174.46,174.43,2.8691]
[1729738762279,4.66,174.46,174.36,3.6117]
[1729738762280,4.66,174.47,174.42,11.04355856]
[1729738763266,4.66,174.48,174.44,11.04355856]
[1729738763472,4.66,174.47,174.44,11.04355856]
[1729738763774,61.94,174.52,174.5,2.868]
[1729738764074,4.66,174.51,174.5,2.868]
[1729738769693,18.57145856,174.51,174.47,2.8685]
[1729738769884,18.57145856,174.51,174.36,3.6117]
[1729738769885,15.70355856,174.51,174.36,3.6117]
[1729738770084,15.70355856,174.51,174.38,11.04355856]
[1729738770295,15.70355856,174.51,174.41,2.8693]
[1729738770296,2.8681,174.5,174.41,2.8693]
[1729738770493,2.8681,174.5,174.38,11.04355856]
[1729738770789,2.8681,174.5,174.36,3.6117]
[1729738770790,4.66,174.51,174.36,3.6117]
[1729738770993,13.91225856,174.46,174.36,3.6117]
[1729738771298,4.58,174.45,174.36,3.6117]
[1729738771491,4.58,174.45,174.37,11.04355856]
[1729738771694,4.58,174.45,174.44,2.869]
[1729738772497,11.04355856,174.51,174.47,2.8684]
[1729738772691,4.58,174.5,174.47,2.8684]
[1729738773094,4.58,174.5,174.49,2.8682]
[1729738773395,4.58,174.5,174.44,11.04355856]
[1729738773594,4.58,174.5,174.45,1.1659]
[1729738773988,4.58,174.5,174.49,2.8682]
[1729738775297,61.94,174.52,174.51,2.8678]
[1729738775497,66.52,174.52,174.51,2.8678]
[1729738776384,66.52,174.52,174.46,1.43437762]
[1729738776586,66.52,174.52,174.45,13.64383618]
[1729738777787,66.52,174.52,174.51,2.8678]
[1729738787700,66.52,174.52,174.45,1.1659]
[1729738788299,66.52,174.52,174.49,2.868]
[1729738789703,66.52,174.52,174.5,2.868]
[1729738790199,66.52,174.52,174.45,1.1659]
[1729738790200,66.52,174.52,174.49,2.8682]
[1729738794503,66.52,174.52,174.5,2.868]
[1729738796312,61.94,174.52,174.51,2.8678]
[1729738796507,4.56,174.52,174.51,2.8678]
[1729738797115,2.8666,174.59,174.54,2.8672]
[1729738797408,4.56,174.58,174.55,2.867]
[1729738797711,4.56,174.57,174.5,11.04355856]
[1729738798097,4.56,174.57,174.56,2.867]
[1729738800506,61.92,174.61,174.52,11.04355856]
[1729738800711,61.92,174.61,174.6,2.8664]
[1729738800902,66.48,174.61,174.6,2.8664]
[1729738802408,66.48,174.61,174.59,2.8665]
[1729738802607,11.04355856,174.6,174.52,1.2343]
[1729738802910,11.04355856,174.6,174.58,2.8666]
[1729738803510,11.04355856,174.6,174.54,2.8673]
[1729738803809,11.04355856,174.6,174.52,1.2343]
[1729738803999,11.04355856,174.6,174.51,1.257]
[1729738804199,66.48,174.61,174.54,2.8672]
[1729738804200,13.91025856,174.58,174.54,2.8672]
[1729738804407,11.04355856,174.55,174.47,1.43406692]
[1729738804618,11.04355856,174.51,174.47,2.8683]
[1729738804912,11.04355856,174.51,174.42,2.6965122]
[1729738804913,4.56,174.5,174.42,2.6965122]
[1729738805310,4.56,174.5,174.49,2.8682]
[1729738806014,4.56,174.52,174.46,11.04355856]
[1729738806204,7.96662192,174.77,174.5,11.04355856]
[1729738806411,1.2441,174.64,174.55,11.04355856]
[1729738806713,4.56,174.63,174.53,11.04355856]
[1729738806914,15.60355856,174.63,174.51,11.04355856]
[1729738807117,2.8662,174.61,174.51,11.04355856]
[1729738807818,11.04355856,174.6,174.51,11.04355856]
[1729738808008,4.56,174.59,174.51,11.04355856]
[1729738808409,4.56,174.59,174.49,1.262]
[1729738809312,7.4265,174.59,174.49,1.262]
[1729738809513,4.56,174.59,174.49,1.262]
[1729738810021,4.56,174.59,174.49,2.69607659]
[1729738810512,4.56,174.59,174.5,1.43407659]
[1729738812212,4.56,174.59,174.56,2.867]
[1729738814414,4.56,174.59,174.5,1.4340536]
[1729738814618,4.1098,174.64,174.58,2.8667]
[1729738814815,4.56,174.63,174.58,2.8667]
[1729738815013,17.62156622,174.62,174.49,1.262]
[1729738815211,2.8662,174.61,174.53,2.8674]
[1729738815410,17.62156622,174.62,174.49,1.262]
[1729738815611,17.62156622,174.62,174.5,1.43406814]
[1729738816317,2.8664,174.6,174.54,2.8673]
[1729738816517,4.56,174.59,174.54,2.8673]
[1729738817109,2.8669,174.57,174.52,2.8675]
[1729738817308,17.62156622,174.56,174.47,2.4708]
[1729738817613,2.8673,174.54,174.49,2.8681]
[1729738817923,4.56,174.55,174.47,2.4708]
[1729738818808,7.4272,174.55,174.5,2.868]
[1729738822525,4.56,174.55,174.51,2.8677]
[1729738824222,7.4272,174.55,174.51,2.8677]
[1729738825125,7.4272,174.55,174.44,1.43452003]
[1729738825126,17.62156622,174.54,174.44,1.43452003]
[1729738825331,17.62156622,174.54,174.41,2.3833]
[1729738825525,17.62156622,174.54,174.42,1.43458211]
[1729738825734,2.8675,174.53,174.48,2.8682]
[1729738826728,4.56,174.55,174.43,1.43458855]
[1729738826927,4.56,174.54,174.44,1.43458855]
[1729738827123,4.56,174.54,174.45,1.43458855]
[1729738827329,4.56,174.54,174.51,2.8678]
[1729738828634,4.56,174.54,174.41,20.00486622]
[1729738828635,4.56,174.54,174.53,2.8675]
[1729738834128,72.91394679,174.62,174.51,11.01394679]
[1729738834325,4.56,174.61,174.51,11.01394679]
[1729738834633,4.56,174.61,174.5,11.01394679]
[1729738834831,2.8665,174.6,174.51,1.43417642]
[1729738835126,2.8665,174.6,174.52,1.43415678]